Cogmind - Beta 13 @@@ ROGUE MODE // 2024.04.11 @ 02:09:11 Player: Xidas Result: Self-destructed Performance ------------- Evolutions (1) 500 Regions Visited (2) 400 Robots Destroyed (14) 70 Value Destroyed (272) 272 Prototype IDs (6) 120 Alien Tech Used (0) 0 Bonus (0) 0 TOTAL SCORE: 1362 Bonus ------- None Cogmind --------- Core Integrity 137/400 Matter 257/300 Energy 100/100 System Corruption 0% Temperature Cool (21) Movement Core (200) Ox3 Location -9/Materials Parts ------- > --- POWER (1) -------- (None) > --- PROPULSION (3) --- (None) > --- UTILITY (3) ------ Medium Storage Unit Targeting Computer > --- WEAPON (2) ------- (None) > --- INVENTORY (10) --- Ion Engine Light Nuclear Core Light Treads Light Treads Medium Matter Pod (0) Large Matter Pod (48) Peak State ------------ > --- POWER ------------ Ion Engine > --- PROPULSION ------- Wheel Wheel Compact Wheel > --- UTILITY ---------- Medium Storage Unit Targeting Computer > --- WEAPON ----------- Assault Rifle Assault Rifle > --- INVENTORY -------- Ion Engine Light Nuclear Core Light Treads Light Treads Medium Matter Pod Large Matter Pod Medium Laser Light Assault Rifle [Rating: 9] Favorites ----------- Power Ion Engine Engine Ion Engine Propulsion Wheel Treads Light Treads Wheel Wheel Utility Medium Storage Unit Storage Medium Storage Unit Processor Targeting Computer Weapon Assault Rifle Energy Gun Medium Laser Ballistic Gun Assault Rifle Build | -11 -10 -9 ------- Run | Yrd Mat Mat Slots Evolved 2 | . . 2 Power . | . . . Propulsion 1 | . . 1 Utility 1 | . . 1 Weapon . | . . . Parts Attached 16 | 6 7 3 Power 1 | 1 . . Engine 1 | 1 . . Core . | . . . Reactor . | . . . Propulsion 7 | 2 4 1 Treads 2 | . 2 . Leg . | . . . Wheel 5 | 2 2 1 Hover . | . . . Flight . | . . . Utility 4 | 1 3 . Device . | . . . Storage 2 | 1 1 . Processor 2 | . 2 . Hackware . | . . . Protection . | . . . Artifact . | . . . Weapon 4 | 2 . 2 Energy Gun 1 | . . 1 Energy Cannon . | . . . Ballistic Gun 3 | 2 . 1 Ballistic Cannon . | . . . Launcher . | . . . Special Weapon . | . . . Impact Weapon . | . . . Slashing Weapon . | . . . Piercing Weapon . | . . . Special Melee Weapon . | . . . Unidentified Prototypes . | . . . Parts Lost 9 | . 1 8 Power 1 | . . 1 Propulsion 4 | . 1 3 Utility . | . . . Weapon 4 | . . 4 Highest Loss Streak 8 | . 1 8 To Critical Strikes . | . . . Average Slot Usage (%) 91 | . 97 76 Engine 12 | . 14 9 Treads 6 | . 8 . Wheel 20 | . 18 24 Storage 13 | . 14 11 Processor 11 | . 12 11 Ballistic Gun 24 | . 28 16 Naked Turns . | . . . Heaviest Build 19 | 14 19 19 Greatest Support 40 | 26 40 36 Greatest Overweight (x) 1 | . 1 . Average Overweight (x) . | . . . Largest Inventory Capacity 10 | 8 10 10 Average Capacity 9 | 7 9 10 Most Carried 8 | 4 8 8 Average Carried 6 | 2 6 7 Final Capacity 10 | 8 10 10 Final Carried 8 | 4 8 6 Class Distribution -------------------- 94% | Mutant 5% | Scavenger-Mutant Dominant Class ---------------- Mutant | -10/Materials Mutant | -9/Materials Resources | -11 -10 -9 ----------- Run | Yrd Mat Mat Matter Collected 684 | 187 397 100 Remotely . | . . . Salvage Created 399 | . 360 39 Parts 35 | . 32 3 Haulers Intercepted 1 | . 1 . Recyclers Shooed . | . . . Parts Field Recycled . | . . . Retrieved Matter . | . . . Parts Self-Destructed . | . . . Prevented . | . . . Kills | -11 -10 -9 ------- Run | Yrd Mat Mat Combat Hostiles Destroyed 10 | . 8 2 Guns 10 | . 8 2 Classes Destroyed 5 | . 5 . Builder 1 | . 1 . Hauler 1 | . 1 . Watcher 2 | . 2 . Swarmer 5 | . 3 2 Grunt 5 | . 5 . Best Kill Streak 3 | . 3 2 Combat Bots Only 3 | . 3 2 Max Kills in Single Turn 2 | . 2 1 Gunslinging 1 | . 1 . Exploded . | . . . Melee . | . . . Uniques/NPCs Destroyed . | . . . Combat | -11 -10 -9 -------- Run | Yrd Mat Mat Hostile Shots Fired 139 | . 30 109 Missed 33 | . 9 24 Damage Taken 964 | . 207 757 Core 300 | . 37 263 Absorbed by Shields . | . . . Core Remaining (%) 92 | 100 85 . Volleys Fired 62 | . 34 28 Largest 2 | . 2 2 Hottest 70 | . 40 70 Shots Fired 111 | . 68 43 Gun 111 | . 68 43 Cannon . | . . . Launcher . | . . . Special . | . . . Kinetic 95 | . 68 27 Thermal 16 | . . 16 Explosive . | . . . Electromagnetic . | . . . Robot Hit Streak 6 | . 6 6 Robot Miss Streak 4 | . 3 4 Penetration Max . | . . . Secondary Targets 2 | . 2 . Max Gunslinging Chain 1 | . 1 . Shots Hit Robots 48 | . 35 13 Core Hits 23 | . 19 4 Critical Kills 1 | . 1 . Critical Parts Destroyed 2 | . 2 . Critical Strikes 4 | . 3 1 Burn 1 | . . 1 Destroy 3 | . 3 . Melee Attacks . | . . . Impact . | . . . Slashing . | . . . Piercing . | . . . Sneak Attacks . | . . . Combat Hostiles . | . . . Follow-up Attacks . | . . . Damage Inflicted 653 | . 481 172 Guns 644 | . 472 172 Cannons . | . . . Explosions . | . . . Melee . | . . . Ramming 9 | . 9 . Kinetic 594 | . 472 122 Thermal 50 | . . 50 Explosive . | . . . Electromagnetic . | . . . Impact . | . . . Slashing . | . . . Piercing . | . . . Highest Corruption . | . . . Average Corruption . | . . . Corruption Purged . | . . . Corruption Blocked . | . . . Overload Shots . | . . . Overflow Damage . | . . . Projectiles . | . . . Explosions . | . . . Melee . | . . . Knockbacks . | . . . Impact . | . . . Kinetic . | . . . Secondary . | . . . Self-Inflicted Damage 4 | . 4 . Shots . | . . . Rammed 1 | . 1 . Targets Rammed 1 | . 1 . Kicked . | . . . Crushed . | . . . Highest Temperature 51 | . 8 51 Average Temperature 25 | . 3 26 Received Heat Transfer 141 | . 78 63 Siege Activations . | . . . Robots Corrupted . | . . . Combat Hostiles . | . . . Parts Fried . | . . . Impact Corruptions . | . . . Robots Melted . | . . . Combat Hostiles . | . . . Parts Melted . | . . . Heat Transferred 222 | . . 222 Parts Sabotaged . | . . . Parts Stolen . | . . . Parts Stripped . | . . . Power Chain Reactions . | . . . Alert | -11 -10 -9 ------- Run | Yrd Mat Mat Peak Influence 154 | . 154 50 Initial . | . . . Average 47 | . 65 9 Maximum Alert Level . | . . . Low Security (%) 100 | 100 100 100 Level 1 . | . . . Level 2 . | . . . Level 3 . | . . . Level 4 . | . . . Level 5 . | . . . High Security . | . . . Max Security . | . . . Squads Dispatched 2 | . 2 . Investigation 2 | . 2 . Extermination . | . . . Reinforcement . | . . . Assault . | . . . Garrison . | . . . Intercept . | . . . Searches Triggered . | . . . Construction Impeded . | . . . Haulers Reinforced . | . . . Active Scanning Responses . | . . . Cargo Convoy Interrupts . | . . . Stealth | -11 -10 -9 --------- Run | Yrd Mat Mat Distress Signals 2 | . 1 1 Communications Jammed . | . . . Distress Signals . | . . . Times Spotted 19 | . 12 7 Peak Tracking Total 6 | . 3 6 Tactical Retreats . | . . . Traps | -11 -10 -9 ------- Run | Yrd Mat Mat Traps Triggered 1 | . 1 . Indirectly . | . . . Trap Hack Attempts . | . . . Triggered . | . . . Disarmed . | . . . Reprogrammed . | . . . Reused . | . . . Traps Extracted . | . . . Installed . | . . . Triggered . | . . . Machines | -11 -10 -9 ---------- Run | Yrd Mat Mat Machines Disabled . | . . . Max in Single Turn . | . . . Machines Repaired . | . . . Machines Dismantled . | . . . Machines Sabotaged . | . . . Overloaded Fab Kills . | . . . Hacking | -11 -10 -9 --------- Run | Yrd Mat Mat Machines Accessed 6 | . 5 1 Terminals 6 | . 5 1 Fabricators . | . . . Repair Stations . | . . . Recycling Units . | . . . Scanalyzers . | . . . Garrison Access . | . . . Total Hacks 20 | . 17 3 Successful 8 | . 7 1 Failed 12 | . 10 2 Catastrophic . | . . . Database Lockouts . | . . . Manual 4 | . 4 . Terminals 20 | . 17 3 Fabricators . | . . . Repair Stations . | . . . Recycling Units . | . . . Scanalyzers . | . . . Garrison Access . | . . . Terminal Hacks 8 | . 7 1 Robot Analysis 1 | . . 1 Prototype ID Bank 4 | . 4 . Emergency Access Points 1 | . 1 . Unreport Threat 1 | . 1 . Hauler Manifests 1 | . 1 . Fabricator Hacks . | . . . Repair Station Hacks . | . . . Recycling Unit Hacks . | . . . Scanalyzer . | . . . Garrison Access Hacks . | . . . Unauthorized Hacks . | . . . Terminals . | . . . Fabricators . | . . . Repair Stations . | . . . Recycling Units . | . . . Scanalyzers . | . . . Garrison Access . | . . . Data Cores Recovered . | . . . Used . | . . . Hacking Detections 6 | . 5 1 Full Trace Events 1 | . 1 . Feedback Events . | . . . Feedback Blocked . | . . . Robot Schematics Acquired . | . . . Robots Built . | . . . Authchips . | . . . Time . | . . . Total Robot Build Rating . | . . . Part Schematics Acquired . | . . . Parts Built . | . . . Authchips . | . . . Time . | . . . Total Part Build Rating . | . . . Parts Repaired . | . . . Time . | . . . Parts Recycled . | . . . Recycled Matter . | . . . Retrieved Matter . | . . . Retrieved Components . | . . . Parts Scanalyzed . | . . . Part Schematics Acquired . | . . . Parts Damaged . | . . . Bothacking | -11 -10 -9 ------------ Run | Yrd Mat Mat Used RIF Installer . | . . . Robots Hacked . | . . . Non-combat . | . . . Combat . | . . . Robot Hacks Applied . | . . . Relay Couplers Released . | . . . Fabnet Peak Effective % . | . . . Robots Rewired . | . . . Allies Hacked . | . . . Hacks Repelled . | . . . Allies | -11 -10 -9 -------- Run | Yrd Mat Mat Total Allies . | . . . Largest Group . | . . . Highest-Rated Group . | . . . Highest-Rated Ally . | . . . Total Orders . | . . . Ally Attacks . | . . . Total Damage . | . . . Kills . | . . . Allies Corrupted . | . . . Allies Melted . | . . . Intel | -11 -10 -9 ------- Run | Yrd Mat Mat Robot Analysis Total 1 | . . 1 Derelict Logs Recovered . | . . . Drone Launches . | . . . Drone Recoveries . | . . . Exploration | -11 -10 -9 ------------- Run | Yrd Mat Mat Turns Passed 594 | 39 409 146 Spaces Moved 381 | 30 279 72 Core 2 | 2 . . Treads 59 | . 59 . Legs . | . . . Wheels 320 | 28 220 72 Hover . | . . . Flight . | . . . Fastest Speed 50 | 50 80 86 Average Speed 97 | 89 100 86 Slowest Speed 160 | 100 160 86 Overloaded Moves . | . . . Propulsion Burnouts . | . . . Robots Hopped . | . . . Cave-ins Triggered . | . . . Exploration Rate (%) 22 | 3 56 9 Regions Visited 2 Branch Regions . Pre-discovered Areas . | . . . Known Exits Taken . | . . . Unknown Exits Taken 2 | 1 1 . Scrap Searched . | . . . Spaces Dug . | . . . Terrain Destroyed . | . . . Melee . | . . . Projectile . | . . . AOE . | . . . Terrain Rammed . | . . . Walls Destroyed . | . . . Machines Disabled . | . . . Actions | -11 -10 -9 --------- Run | Yrd Mat Mat Total 491 | 39 337 115 Wait 19 | . 10 9 Move 379 | 29 278 72 Hop . | . . . Pick Up 9 | 4 3 2 Fast Attach 11 | 6 5 . Attach 4 | . 1 3 Detach 2 | . 2 . Swap 1 | . 1 . Drop 3 | . 2 1 Fire 62 | . 34 28 Melee . | . . . Ram 1 | . 1 . Kick . | . . . Crush . | . . . Escape Stasis . | . . . Rewire . | . . . Trap . | . . . Miscellaneous . | . . . Route ------- -11/Scrapyard -10/Materials -9/Materials History --------- Turn | Location | Event 2 | -11/Scrapyard | Met Revision 17 27 | -11/Scrapyard | Discovered new exit (range 15) 40 | -11/Scrapyard | Entered Materials 302 | -10/Materials | Build established: Mutant 395 | -10/Materials | Discovered new exit (range 5) 449 | -10/Materials | Entered another Materials area 449 | -9/Materials | Evolved 2 slots: Propulsion x1, Utility x1 588 | -9/Materials | Core integrity fell below 50% 595 | -9/Materials | Self-destructed Last Messages --------------- 00548_ S-10 Pest destroyed. 00552_ Assault Rifle destroyed. 00558_ Wheel destroyed. 00568_ R-06 Scavenger collects Flight Unit. 00570_ Ion Engine destroyed. 00572_ K-01 Serf collects debris. 00572_ R-06 Scavenger collects Lgt. Ion Engine. 00572_ R-06 Scavenger collects Flight Unit. 00575_ K-01 Serf collects debris. 00579_ Wheel destroyed. 00579_ Lgt. Assault Rifle destroyed. 00582_ K-01 Serf collects debris. 00582_ Critical hit (Burn: +37). 00585_ K-01 Serf collects debris. 00589_ R-06 Scavenger suffers critical hit (Burn). 00590_ K-01 Serf collects debris. 00594_ Med. Laser destroyed. 00595_ S-10 Pest suffers critical hit (Destroy). 00595_ S-10 Pest destroyed. Map ----- +----------------------------------------------------+ | | | ?????????????????????????????????????????????????? | | ?????????????????????????????????????????????????? | | #####????????????????????????????????????????????? | | #"""#????????????????????????????????????????????? | | #"T"##############???????????????????????????????? | | ## #???????????????????????????????? | | """ ## #???????????????????????????????? | | """"" ## """ #???????????????????????????????? | | """"" ## """ ####????????????????????????????? | | """"" ## """ # ????????????????????????????? | | """ ## # "????????????????????????????? | | #####+### """??????????????????????????? | | #?# # ""???????????????????????????? | | ####+####### # ???????????????????????????? | | # ????????????????????????????? | | # " ????????????????????????????? | | # "?????????????????????????????? | | ############# # "?????????????????????????????? | | ????????????# #+#########?????????????????????? | | ????????????# + "???????????????????? | | ????????????# ##### #?????????????????????? | | ????????????# #???# #?????????????????????? | | ????????????#######+##??##k####??????????????????? | | ??????????????????? ???# %%[####???????????????? | | ????????????????????""??#@ % #????????? | | ????????????????????????# s ^^ + ???????? | | ????????????????????????# Y ^ #????????? | | ????????????????????????# #######u #????????? | | ????????????????????????#### ##??????????????????? | | ????????????????????????????a#???????????????????? | | ???????????????????????????? #???????????????????? | | ???????????????????????????? #???????????????????? | | ???????????????????????????? #???????????????????? | | ???????????????????????????? #???????????????????? | | ?????????????????????????????#???????????????????? | | ?????????????????????????????????????????????????? | | ?????????????????????????????????????????????????? | | ?????????????????????????????????????????????????? | | ?????????????????????????????????????????????????? | | ?????????????????????????????????????????????????? | | ?????????????????????????????????????????????????? | | ?????????????????????????????????????????????????? | | ?????????????????????????????????????????????????? | | ?????????????????????????????????????????????????? | | ?????????????????????????????????????????????????? | | ?????????????????????????????????????????????????? | | ?????????????????????????????????????????????????? | | ?????????????????????????????????????????????????? | | ?????????????????????????????????????????????????? | +----------------------------------------------------+ Best States ------------- Heat Dissipation 28 Energy Generation 10 Energy Capacity 250 Matter Stores 300 Matter Capacity 300 Sight Range 16 Terrain Scan Density 10 Evasion (%) 44 Targeting Accuracy 5 Recoil Reduction 2 Item Schematics ----------------- None Robot Schematics ------------------ None Fabricated ------------ Nothing Alien Tech Used ----------------- None Achievements -------------- None Challenges ------------ None Game ------ Seed OmegaSingularityTriangulator Manual? 0 Play Time 00:11:35 Cumulative 15.5 hours Start 2024.04.11 @ 01:59:30 End 2024.04.11 @ 02:09:11 Sessions 1 Manual Loads 0 Difficulty Rogue Special Mode None Game No. 17 Rogue 17 Adventurer 0 Explorer 0 Win Type - Total 0 Types 0/0/0/0/0/0/0/0/0 Lore% 16 Gallery% 16 Achievement% 12 Wizard Run 0 Options --------- Layout 1 ASCII 0 Keyboard 0 Movement Mouse Keybinds 0 Fullscreen 1 Font 24/Smallcaps Map View 50x35 Zoom Use 0% Tactical HUD 1 Map Filters NONE Filters NONE Steam 1 RUN: efbd2c43-aac4-4c95-a182-7bade651fdab